bitfinex/quotes_SOLUSD_20240603
["timestamp","ask_amount","ask_price","bid_price","bid_amount"]
[1717391855876,2.2436,164.91,164.86,45.0]
[1717391856071,6.1344,164.93,164.86,45.0]
[1717391856072,2.2437,164.9,164.86,45.0]
[1717391856291,2.2439,164.89,164.86,45.0]
[1717391856480,6.1344,164.93,164.86,45.0]
[1717391856481,2.244,164.88,164.86,45.0]
[1717391860075,2.2439,164.89,164.86,45.0]
[1717391860887,7.25362128,164.92,164.86,45.0]
[1717391860888,2.2438,164.9,164.86,45.0]
[1717391863383,2.2439,164.89,164.86,45.0]
[1717391863591,2.2439,164.89,164.83,2.2446]
[1717391863893,2.2438,164.9,164.84,2.2445]
[1717391864212,2.2438,164.9,164.84,47.2445]
[1717391864512,2.2436,164.91,164.85,62.2444]
[1717391864802,2.2436,164.91,164.86,45.0]
[1717391866604,2.2437,164.9,164.86,45.0]
[1717391866782,2.2436,164.91,164.86,45.0]
[1717391867107,10.6212,164.93,164.81,60.0]
[1717391867605,2.2441,164.88,164.82,67.2447]
[1717391867904,2.2442,164.87,164.78,70.5487]
[1717391868109,2.2442,164.87,164.8,60.0]
[1717391868284,2.2442,164.87,164.81,20.0]
[1717391868485,2.2443,164.86,164.78,66.058]
[1717391868698,14.82,164.88,164.76,75.4964]
[1717391868909,2.2445,164.85,164.79,2.2451]
[1717391870287,2.2443,164.86,164.8,2.2451]
[1717391870784,2.2444,164.85,164.79,2.2452]
[1717391870979,2.2443,164.86,164.8,60.0]
[1717391871209,14.82,164.91,164.81,65.0]
[1717391871512,2.244,164.89,164.83,2.2446]
[1717391872309,2.244,164.88,164.82,2.2448]
[1717391872626,2.2442,164.87,164.81,67.2449]
[1717391873216,2.2442,164.87,164.82,2.2448]
[1717391873415,2.2442,164.87,164.81,67.2449]
[1717391874228,2.2442,164.87,164.82,2.2448]
[1717391875242,2.2442,164.87,164.81,67.2449]
[1717391875749,2.2443,164.86,164.81,45.0]
[1717391876116,2.2443,164.86,164.81,47.2449]
[1717391876529,4.4875,164.9,164.79,2.2452]
[1717391876530,2.2444,164.85,164.79,2.2452]
[1717391876739,14.82,164.88,164.79,2.2452]
[1717391877046,2.2446,164.84,164.78,47.2453]
[1717391877252,2.2446,164.84,164.76,4.4913]
[1717391877253,4.4887,164.86,164.75,60.0]
[1717391877432,2.2448,164.83,164.74,6.058]
[1717391877629,2.2448,164.83,164.77,2.2454]
[1717391878153,14.82,164.85,164.75,2.2456]
[1717391878528,2.2451,164.81,164.75,2.2456]
[1717391879043,2.2449,164.82,164.76,2.2456]
[1717391879341,2.2452,164.8,164.72,60.0]
[1717391880046,2.245,164.81,164.72,60.0]
[1717391880556,2.245,164.81,164.73,45.0]
[1717391880733,2.245,164.81,164.74,2.2459]
[1717391881057,14.82,164.82,164.73,45.0]
[1717391881058,2.2454,164.78,164.73,45.0]
[1717391881218,2.2454,164.78,164.7,60.0]
[1717391881422,2.2454,164.78,164.71,65.0]
[1717391881745,2.2454,164.78,164.71,45.0]
[1717391882039,2.2451,164.8,164.73,2.2459]
[1717391882464,2.2451,164.8,164.74,2.2459]
[1717391882646,2.2452,164.79,164.73,2.246]
[1717391882836,2.2452,164.79,164.72,2.2462]
[1717391883357,2.2452,164.79,164.73,2.246]
[1717391883675,2.2452,164.79,164.72,2.2461]
[1717391884020,2.2455,164.77,164.71,45.0]
[1717391884259,2.2457,164.76,164.71,45.0]
[1717391884424,2.2457,164.76,164.7,47.2464]
[1717391884931,2.2455,164.77,164.71,2.2463]
[1717391885123,2.2455,164.77,164.71,47.2463]
[1717391885635,2.2455,164.77,164.71,2.2463]
[1717391886150,2.2454,164.78,164.72,2.2462]
[1717391886348,2.2453,164.79,164.73,2.246]
[1717391886536,2.2453,164.79,164.73,47.246]
[1717391887349,2.2453,164.79,164.73,45.0]
[1717391888148,2.2455,164.77,164.71,2.2463]
[1717391889831,22.552,164.81,164.72,60.0]
[1717391890027,2.2451,164.8,164.74,2.2458]
[1717391890556,2.2451,164.8,164.73,47.246]
[1717391890762,2.2452,164.79,164.73,47.246]
[1717391891960,2.2454,164.78,164.72,2.2462]
[1717391892247,2.2455,164.77,164.7,20.0]
[1717391892425,17.58662128,164.8,164.68,8.93217404]
[1717391892631,4.4914,164.76,164.68,8.93217404]
[1717391892871,4.4914,164.76,164.67,8.93217404]
[1717391893032,2.2462,164.73,164.65,60.0]
[1717391893227,27.1413,164.75,164.64,11.17927404]
[1717391893441,2.2463,164.71,164.63,66.2718]
[1717391893649,2.2463,164.71,164.65,2.2471]
[1717391893833,27.1413,164.75,164.65,2.2471]
[1717391893834,2.2462,164.72,164.65,2.2471]
[1717391895141,2.2462,164.72,164.65,60.0]
[1717391895345,2.2461,164.73,164.66,2.2469]
[1717391895553,2.2463,164.72,164.65,2.247]
[1717391895935,2.2463,164.72,164.66,2.247]
[1717391896254,2.2463,164.71,164.65,2.2471]
[1717391897636,2.2466,164.7,164.61,60.0]
[1717391897961,19.3119,164.74,164.62,2.2474]
[1717391897962,2.2468,164.68,164.62,2.2474]
[1717391898434,2.2466,164.69,164.62,2.2474]
[1717391899057,2.2466,164.69,164.59,11.0314]
[1717391899268,2.2466,164.69,164.6,125.0]
[1717391899469,2.2465,164.7,164.63,2.2473]
[1717391899633,2.2465,164.7,164.6,125.0]
[1717391899634,2.2465,164.7,164.62,60.0]
[1717391899962,2.2465,164.7,164.64,2.2473]
[1717391900564,2.2465,164.7,164.63,2.2474]
[1717391901933,2.2466,164.69,164.63,2.2474]
[1717391902168,2.2465,164.7,164.63,2.2474]
[1717391902886,2.2465,164.7,164.64,2.2473]
[1717391903282,22.6497,164.75,164.66,4.494]
[1717391903457,22.6497,164.75,164.67,60.0]
[1717391903657,8.2656,164.75,164.7,2.2465]
[1717391903882,6.0198,164.75,164.7,2.2465]
[1717391904080,2.2458,164.75,164.69,2.2465]
[1717391904466,14.82,164.78,164.68,45.0]
[1717391904675,2.2461,164.73,164.68,45.0]
[1717391905688,2.2462,164.72,164.66,2.247]
[1717391905870,2.2464,164.71,164.64,20.0]
[1717391906069,2.2464,164.71,164.65,45.0]
[1717391906689,2.2463,164.71,164.65,47.2471]
[1717391908474,2.2462,164.72,164.66,2.247]
[1717391909371,4.492,164.74,164.65,45.0]
[1717391909588,4.492,164.74,164.64,2.2472]
[1717391909589,2.2465,164.7,164.64,2.2472]
[1717391911585,19.3124,164.72,164.59,6.5357]
[1717391911791,0.17,164.71,164.6,20.0]
[1717391911991,22.07902128,164.72,164.64,2.2473]
[1717391911992,2.2465,164.7,164.64,2.2473]
[1717391912693,2.2463,164.71,164.64,60.0]
[1717391912903,6.2422,164.73,164.64,60.0]
[1717391913190,6.2422,164.73,164.67,2.2468]
[1717391913686,2.2463,164.72,164.66,2.247]
[1717391913995,2.2463,164.72,164.65,45.0]
[1717391913996,6.2422,164.73,164.65,47.2471]
[1717391914196,6.2422,164.73,164.66,2.247]
[1717391914375,8.4883,164.73,164.66,2.247]
[1717391914774,2.2462,164.72,164.66,2.247]
[1717391915794,6.2422,164.73,164.62,4.4949]
[1717391915992,2.2464,164.71,164.65,2.2471]
[1717391917292,2.2464,164.71,164.65,22.2471]
[1717391917497,8.3916,164.71,164.66,45.0]
[1717391917699,23.5686,164.71,164.66,45.0]
[1717391917870,23.5686,164.71,164.65,22.2471]
[1717391918075,23.5686,164.71,164.65,2.2471]
[1717391918383,21.3222,164.71,164.63,20.0]
[1717391918695,2.2467,164.69,164.63,2.2473]
[1717391919074,21.3222,164.71,164.64,2.2472]
[1717391919274,23.5686,164.71,164.65,2.2471]
[1717391919779,23.5686,164.71,164.64,2.2472]
[1717391919997,2.2465,164.7,164.64,2.2472]
[1717391921791,2.2466,164.69,164.63,2.2474]
[1717391922308,2.2466,164.69,164.63,22.2474]
[1717391922493,2.2466,164.69,164.64,47.74571585]
[1717391922805,21.3222,164.71,164.64,45.0]
[1717391923202,2.2467,164.69,164.64,45.0]
[1717391923792,2.2468,164.68,164.62,2.2476]
[1717391923993,2.2468,164.68,164.63,2.74598566]
[1717391924195,2.2468,164.68,164.63,47.74598566]
[1717391924387,24.5803,164.68,164.64,2.74598566]
[1717391924583,24.5803,164.68,164.61,2.2476]
[1717391924788,2.2469,164.67,164.62,2.74604541]
[1717391925008,2.2469,164.67,164.63,2.74604541]
[1717391925009,22.3335,164.66,164.63,2.74604541]
[1717391925205,22.3335,164.66,164.59,20.0]
[1717391925578,8.8531,164.66,164.6,45.0]
[1717391925784,6.6061,164.66,164.61,20.0]
[1717391925978,6.6061,164.66,164.61,22.2476]
[1717391926490,6.6061,164.66,164.61,2.2476]
[1717391927300,6.6061,164.66,164.59,20.0]
[1717391927484,30.0505,164.7,164.62,2.2474]
[1717391927485,36.0619,164.7,164.62,2.2474]
[1717391927808,38.3084,164.7,164.63,2.2474]
[1717391928308,2.2466,164.69,164.63,2.2474]
[1717391929198,2.2466,164.69,164.62,47.2475]
[1717391929584,2.2466,164.69,164.63,2.2474]
[1717391929808,23.4884,164.7,164.63,2.2474]
[1717391930311,2.2466,164.69,164.63,2.2474]
[1717391931320,21.2419,164.7,164.62,47.2475]
[1717391931321,2.2468,164.68,164.62,47.2475]
[1717391931689,2.2466,164.69,164.62,47.2475]
[1717391931890,4.96,164.67,164.63,2.2474]
[1717391932412,4.96,164.67,164.62,47.2475]
[1717391933589,21.2419,164.7,164.63,60.0]
[1717391933790,2.2464,164.71,164.64,45.0]
[1717391934012,4.96,164.69,164.64,45.0]
[1717391935415,4.96,164.72,164.64,45.0]
[1717391935717,4.96,164.67,164.64,45.0]
[1717391936517,2.2467,164.69,164.6,8.9853075]
[1717391936518,13.6561,164.65,164.6,8.9853075]
[1717391936696,13.6561,164.65,164.58,2.248]
[1717391936697,4.96,164.63,164.59,2.248]
[1717391936889,4.96,164.64,164.59,62.248]
[1717391937087,4.96,164.64,164.6,2.2478]
[1717391937512,4.96,164.65,164.6,2.2478]
[1717391937818,4.96,164.65,164.6,22.2478]
[1717391938223,4.96,164.64,164.61,45.0]
[1717391938398,4.96,164.64,164.6,47.2478]
[1717391939603,4.96,164.64,164.6,45.0]
[1717391940019,4.96,164.63,164.6,45.0]
[1717391940623,22.0874,164.64,164.58,8.99126587]
[1717391940823,22.0874,164.64,164.56,8.99126587]
[1717391941006,19.84,164.64,164.58,2.2481]
[1717391941205,8.7603,164.65,164.58,2.2481]
[1717391941415,4.96,164.63,164.59,2.248]
[1717391941614,16.4192,164.66,164.59,60.0]
[1717391941824,4.96,164.64,164.61,2.2477]
[1717391942101,2.2468,164.68,164.61,2.2477]
[1717391942409,4.96,164.64,164.6,31.23906587]
[1717391942621,4.96,164.64,164.61,45.0]
[1717391945212,2.2469,164.67,164.61,45.0]
[1717391945420,4.96,164.66,164.61,60.0]
[1717391945623,4.96,164.66,164.62,45.0]
[1717391946007,4.96,164.65,164.62,45.0]
[1717391946621,4.96,164.65,164.59,11.23916587]
[1717391946826,4.96,164.63,164.6,65.0]
[1717391949526,4.96,164.64,164.6,67.2478]
[1717391949742,4.96,164.65,164.6,67.2478]
[1717391949907,4.96,164.64,164.6,65.0]
[1717391950418,4.96,164.64,164.6,67.2478]
[1717391950619,6.2219,164.69,164.6,65.0]
[1717391950822,4.96,164.65,164.61,62.2476]
[1717391951017,2.2468,164.68,164.62,45.0]
[1717391951334,4.96,164.66,164.62,45.0]
[1717391952935,4.96,164.65,164.62,45.0]
[1717391954638,2.2469,164.67,164.62,45.0]
[1717391954834,4.96,164.66,164.62,45.0]
[1717391956036,2.2469,164.67,164.62,45.0]
[1717391956228,4.96,164.66,164.62,45.0]
[1717391957033,2.2469,164.67,164.62,45.0]
[1717391957237,4.96,164.65,164.62,45.0]
[1717391959039,4.96,164.64,164.6,28.98806342]
[1717391959212,4.96,164.62,164.59,8.98806342]
[1717391959419,4.96,164.62,164.58,2.2481]
[1717391959620,4.96,164.62,164.58,22.2481]
[1717391960147,4.96,164.62,164.58,2.2481]
[1717391961154,4.96,164.6,164.55,8.98806342]
[1717391961319,4.96,164.59,164.55,8.98806342]
[1717391961519,4.96,164.58,164.55,8.98806342]
[1717391961736,4.96,164.58,164.54,11.23666342]
[1717391962057,2.2476,164.62,164.55,68.8249]
[1717391962216,4.96,164.6,164.55,8.8249]
[1717391962423,4.96,164.59,164.55,2.2485]
[1717391962647,4.96,164.59,164.56,2.2484]
[1717391962853,4.96,164.6,164.56,2.2484]
[1717391963559,4.96,164.6,164.56,47.2484]
[1717391963856,4.96,164.6,164.56,45.0]
[1717391964033,4.96,164.59,164.56,45.0]
[1717391964231,4.96,164.59,164.55,45.0]
[1717391965226,4.96,164.58,164.55,45.0]
[1717391965427,4.96,164.59,164.55,45.0]
[1717391965726,4.96,164.59,164.55,107.2484]
[1717391966074,2.2475,164.63,164.56,2.2483]
[1717391966075,4.96,164.6,164.56,2.2483]
[1717391966554,4.96,164.6,164.55,107.2485]
[1717391968165,4.96,164.6,164.55,47.2485]
[1717391968467,15.5534,164.7,164.57,64.96]
[1717391968644,15.5534,164.7,164.59,2.2478]
[1717391968836,2.247,164.67,164.6,1.74933672]
[1717391969034,2.247,164.67,164.61,1.74923044]
[1717391969632,2.2468,164.68,164.61,3.99693044]
[1717391969837,4.96,164.66,164.62,45.0]
[1717391970038,4.96,164.65,164.63,1.74936104]
[1717391970236,2.2469,164.67,164.63,1.74936104]
[1717391970770,2.2467,164.69,164.63,1.74936104]
[1717391970961,4.96,164.67,164.63,1.74936104]
[1717391971469,2.2465,164.7,164.63,3.99676104]
[1717391971648,4.96,164.67,164.64,45.0]
[1717391971853,2.2465,164.7,164.65,1.75196402]
[1717391971854,4.96,164.68,164.65,1.75196402]
[1717391972154,2.2465,164.7,164.65,1.75196402]
[1717391972360,15.713,164.75,164.69,2.2465]
[1717391972586,15.713,164.75,164.7,1.74773028]
[1717391972587,4.96,164.71,164.7,1.74773028]
[1717391972751,4.96,164.71,164.67,1.74773028]
[1717391972948,2.2462,164.73,164.67,45.0]
[1717391972949,4.96,164.7,164.67,45.0]
[1717391973663,6.3094,164.75,164.68,60.0]
[1717391973877,4.96,164.73,164.69,45.0]
[1717391974081,4.96,164.72,164.69,45.0]
[1717391974970,4.96,164.71,164.69,45.0]
[1717391975267,4.96,164.72,164.69,45.0]
[1717391976277,2.2461,164.73,164.69,45.0]
[1717391976566,4.96,164.72,164.69,45.0]
[1717391978164,7.2063,164.71,164.69,45.0]
[1717391978357,4.96,164.7,164.69,45.0]
[1717391979055,4.96,164.71,164.69,45.0]
[1717391979255,4.96,164.72,164.69,45.0]
[1717391979678,4.96,164.71,164.69,45.0]
[1717391979878,4.96,164.71,164.68,45.0]
[1717391980051,4.96,164.7,164.68,45.0]
[1717391980369,4.96,164.72,164.68,45.0]
[1717391980873,4.96,164.71,164.68,45.0]
[1717391981179,4.96,164.71,164.69,1.58046443]
[1717391981478,4.96,164.71,164.68,45.0]
[1717391981784,4.96,164.72,164.68,45.0]
[1717391982280,2.246,164.74,164.68,45.0]
[1717391982450,4.96,164.71,164.68,45.0]
[1717391984545,2.2461,164.73,164.68,45.0]
[1717391984744,4.96,164.72,164.68,45.0]
[1717391986852,4.96,164.72,164.68,47.2467]
[1717391987375,4.96,164.72,164.68,45.0]
[1717391988152,4.96,164.73,164.68,51.2527]
[1717391988467,4.96,164.72,164.68,51.2527]
[1717391989282,4.96,164.72,164.68,53.4994]
[1717391989452,4.96,164.72,164.68,51.2527]
[1717391990771,4.96,164.72,164.65,2.247]
[1717391990772,4.96,164.71,164.65,2.247]
[1717391990978,2.2464,164.71,164.65,20.0]
[1717391991154,2.2465,164.7,164.63,2.2473]
[1717391991360,2.2465,164.7,164.64,2.2472]
[1717391991662,2.2465,164.7,164.63,22.2474]
[1717391992176,2.2465,164.7,164.64,45.0]
[1717391993492,2.2463,164.72,164.64,105.0]
[1717391993779,4.96,164.69,164.64,111.0188]
[1717391996569,4.96,164.67,164.63,20.0]
[1717391996779,4.96,164.67,164.61,24.96]
[1717391997081,4.96,164.67,164.61,20.0]
[1717391997281,4.96,164.72,164.61,20.0]
[1717391997282,2.2465,164.7,164.62,60.0]
[1717391997463,2.2465,164.7,164.63,20.0]
[1717391997855,2.2465,164.7,164.64,45.0]
[1717391998980,2.2464,164.71,164.64,45.0]
[1717392000486,2.2464,164.71,164.64,105.0]
[1717392000659,22.0862,164.72,164.65,2.2471]
[1717392000864,4.96,164.69,164.65,2.2471]
[1717392001057,6.2286,164.69,164.59,75.46059321]
[1717392001265,4.96,164.64,164.61,2.2477]
[1717392002161,2.2466,164.69,164.63,60.0]
[1717392002369,4.96,164.67,164.63,60.0]
[1717392002975,4.96,164.67,164.64,45.0]
[1717392003356,40.651,164.72,164.64,45.0]
[1717392003557,2.2463,164.72,164.64,45.0]
[1717392003774,4.96,164.69,164.65,2.2471]
[1717392004162,2.2463,164.71,164.64,47.2473]
[1717392004354,2.2463,164.71,164.65,2.2471]
[1717392004556,4.96,164.69,164.65,62.2471]
[1717392004787,4.96,164.69,164.66,45.0]
[1717392005570,2.2463,164.71,164.66,45.0]
[1717392005763,4.96,164.7,164.66,45.0]
[1717392005965,4.96,164.7,164.67,60.0]
[1717392006170,15.4541,164.76,164.68,47.2467]
[1717392006385,4.96,164.72,164.68,45.0]
[1717392006565,4.96,164.7,164.67,45.0]
[1717392006764,4.96,164.7,164.66,45.0]
[1717392006992,4.96,164.7,164.67,20.0]
[1717392007191,4.96,164.7,164.68,45.0]
[1717392008105,4.96,164.69,164.68,45.0]
[1717392008319,7.2067,164.69,164.63,60.0]
[1717392008631,6.6458,164.71,164.59,75.45820018]
[1717392008790,4.96,164.64,164.6,2.74664002]
[1717392008991,4.96,164.63,164.59,2.2479]
[1717392010989,4.96,164.64,164.6,2.2478]
[1717392011316,4.96,164.64,164.6,47.2478]
[1717392013417,4.96,164.64,164.6,45.0]
[1717392015903,4.96,164.65,164.61,60.0]
[1717392016217,4.96,164.65,164.62,45.0]
[1717392016725,7.2072,164.65,164.62,45.0]
[1717392016895,4.96,164.64,164.62,45.0]
[1717392017593,2.247,164.66,164.62,45.0]
[1717392017794,4.96,164.64,164.62,45.0]
[1717392017995,4.96,164.63,164.62,45.0]
[1717392018201,4.96,164.64,164.62,45.0]
[1717392018423,2.247,164.66,164.62,45.0]
[1717392018424,4.96,164.63,164.62,45.0]
[1717392019833,4.96,164.63,164.58,20.0]
[1717392020130,4.96,164.6,164.58,20.0]
[1717392020509,4.96,164.6,164.58,22.2481]
[1717392021116,4.96,164.6,164.59,45.0]
[1717392021329,4.96,164.61,164.59,45.0]
[1717392021514,4.96,164.61,164.58,47.2481]
[1717392023331,4.96,164.61,164.58,45.0]
[1717392023728,4.96,164.61,164.59,2.2479]
[1717392023931,4.96,164.61,164.59,47.2479]
[1717392024314,4.96,164.61,164.59,2.2479]
[1717392024506,7.2079,164.6,164.54,17.1814218]
[1717392024739,4.96,164.58,164.54,2.2486]
[1717392025032,4.96,164.58,164.53,60.0]
[1717392025918,4.96,164.58,164.54,20.0]
[1717392026537,4.96,164.58,164.54,22.2486]
[1717392026838,4.96,164.57,164.54,20.0]
[1717392027021,4.96,164.57,164.55,45.0]
[1717392027344,4.96,164.57,164.54,45.0]
[1717392027531,4.96,164.57,164.54,47.2486]
[1717392027735,51.6266,164.64,164.55,2.2485]
[1717392027736,4.96,164.58,164.55,2.2485]
[1717392028828,4.96,164.56,164.54,45.0]
[1717392029635,4.96,164.56,164.5,13.94610018]
[1717392029844,4.96,164.56,164.51,20.0]
[1717392030441,2.248,164.59,164.53,2.2487]
[1717392030650,6.5009,164.62,164.53,60.0]
[1717392030651,4.96,164.58,164.53,60.0]
[1717392030852,4.96,164.59,164.54,2.2486]
[1717392031026,4.96,164.59,164.54,47.2486]
[1717392031221,4.96,164.59,164.54,45.0]
[1717392031451,15.7934,164.63,164.55,60.0]
[1717392031452,2.2474,164.63,164.55,60.0]
[1717392031658,4.96,164.61,164.57,62.2481]
[1717392031952,4.96,164.61,164.58,45.0]
[1717392032625,4.96,164.6,164.58,45.0]
[1717392032824,4.96,164.59,164.58,45.0]
[1717392034244,2.2475,164.63,164.58,45.0]
[1717392034446,4.96,164.61,164.58,45.0]
[1717392034619,22.814,164.67,164.59,2.2479]
[1717392034823,4.96,164.62,164.58,47.2481]
[1717392035948,4.96,164.61,164.58,45.0]
[1717392036147,2.2474,164.63,164.58,45.0]
[1717392036321,4.96,164.61,164.58,45.0]
[1717392036955,4.96,164.59,164.58,45.0]
[1717392040157,4.96,164.6,164.58,45.0]
[1717392041048,4.96,164.6,164.58,47.2481]
[1717392041424,4.96,164.62,164.58,47.2481]
[1717392042040,4.96,164.62,164.58,45.0]
[1717392042240,4.96,164.61,164.58,45.0]
[1717392042447,4.96,164.6,164.58,45.0]
[1717392042751,2.2473,164.64,164.58,47.2481]
[1717392043052,4.96,164.61,164.58,47.2481]
[1717392043749,2.2472,164.65,164.59,62.7695712]
[1717392043940,4.96,164.63,164.6,45.0]
[1717392044446,2.2471,164.66,164.6,47.2477]
[1717392044644,4.96,164.63,164.6,47.2477]
[1717392045152,4.96,164.63,164.6,45.0]
[1717392045755,4.96,164.62,164.6,45.0]
[1717392047128,2.2472,164.65,164.6,45.0]
[1717392047343,4.96,164.62,164.6,45.0]
[1717392048351,2.2472,164.65,164.6,45.0]
[1717392048530,4.96,164.62,164.6,45.0]
[1717392053647,8.9863,164.7,164.6,45.0]
[1717392053648,22.196,164.71,164.61,60.0]
[1717392053857,4.96,164.67,164.61,60.0]
[1717392054036,4.96,164.67,164.62,71.0188]
[1717392055263,2.2467,164.69,164.62,71.0188]
[1717392055450,4.96,164.67,164.62,71.0188]
[1717392056863,4.96,164.66,164.62,71.0188]
[1717392059237,2.2466,164.69,164.63,2.2474]
[1717392059551,4.96,164.66,164.63,2.2474]
[1717392060343,22.196,164.71,164.6,8.95469261]
[1717392060569,4.96,164.62,164.59,8.95469261]
[1717392060853,4.96,164.62,164.57,66.0166]
[1717392060854,4.96,164.6,164.57,66.0166]
[1717392061958,4.96,164.6,164.58,2.2481]
[1717392062158,4.96,164.61,164.58,47.2481]
[1717392065067,2.2471,164.65,164.59,62.2479]
[1717392065263,4.96,164.62,164.6,45.0]
[1717392065455,4.96,164.61,164.58,47.2481]
[1717392068578,4.96,164.61,164.58,45.0]
[1717392068754,4.96,164.6,164.58,45.0]
[1717392068960,4.96,164.59,164.56,8.95469261]
[1717392069173,4.96,164.58,164.56,8.95469261]
[1717392069363,4.96,164.58,164.54,15.14859261]
[1717392069954,4.96,164.59,164.54,15.14859261]
[1717392070154,4.96,164.59,164.55,20.0]
[1717392070779,4.96,164.59,164.56,2.2484]
[1717392071470,4.96,164.59,164.56,47.2484]
[1717392071972,2.2476,164.62,164.56,47.2484]
[1717392072149,4.96,164.6,164.56,47.2484]
[1717392072548,4.96,164.6,164.57,0.3451479]
[1717392072764,4.96,164.6,164.56,45.0]
[1717392073252,4.96,164.59,164.56,45.0]
[1717392073881,2.2476,164.62,164.56,45.0]
[1717392074083,4.96,164.59,164.56,45.0]
[1717392075019,4.96,164.58,164.56,45.0]
[1717392075582,2.2478,164.61,164.56,45.0]
[1717392075880,4.96,164.58,164.56,45.0]
[1717392076258,4.96,164.57,164.56,45.0]
[1717392076463,4.96,164.57,164.55,45.0]
[1717392076659,4.96,164.56,164.55,45.0]
[1717392077870,4.96,164.57,164.55,45.0]
[1717392078977,4.96,164.56,164.55,45.0]
[1717392079906,7.2084,164.56,164.51,8.98541326]
[1717392080069,4.96,164.53,164.52,2.7630743]
[1717392080270,4.96,164.53,164.49,63.0654301]
[1717392080574,7.2084,164.56,164.49,63.0654301]
[1717392080575,4.96,164.52,164.49,63.0654301]
[1717392080779,7.72662128,164.56,164.49,0.8162301]
[1717392080987,4.96,164.5,164.49,0.8162301]
[1717392083768,24.3371,164.56,164.49,0.8162301]
[1717392083969,2.2487,164.54,164.49,0.8162301]
[1717392084165,4.96,164.5,164.49,0.8162301]
[1717392086374,4.96,164.51,164.49,0.8162301]
[1717392089421,2.2487,164.54,164.49,0.8162301]
[1717392089713,4.96,164.52,164.49,0.8162301]
[1717392089878,2.2487,164.54,164.49,0.8162301]
[1717392089879,4.96,164.51,164.49,0.8162301]
[1717392090784,4.96,164.5,164.49,0.8162301]
[1717392092216,7.2092,164.5,164.49,0.8162301]
[1717392106834,2.2492,164.5,164.49,0.8162301]
[1717392107134,7.2092,164.5,164.49,0.8162301]
[1717392117553,19.43422128,164.5,164.49,0.8162301]
[1717392118634,11.7076,164.5,164.49,0.8162301]
[1717392119638,14.47422128,164.5,164.49,0.8162301]
[1717392121218,11.7076,164.5,164.49,0.8162301]
[1717392122932,2.2492,164.5,164.49,0.8162301]
[1717392123135,7.2092,164.5,164.49,0.8162301]
[1717392126451,12.1692,164.5,164.49,0.8162301]
[1717392126750,7.2092,164.5,164.49,0.8162301]
[1717392132056,2.2492,164.5,164.49,0.8162301]
[1717392132261,7.2092,164.5,164.49,0.8162301]
[1717392135263,11.7076,164.5,164.49,0.8162301]
[1717392138769,2.2492,164.5,164.49,0.8162301]
[1717392138949,7.2092,164.5,164.49,0.8162301]